fUST/lending_fUST_20240125
["ID","MTS","AMOUNT","RATE_DAILY","PERIOD"]
[312695432,1706149840499,-233.17782149,0.0003,3]
[312695434,1706149840508,-154.84515485,0.0003,4]
[312695436,1706149840517,-2319.1861855,0.0003,3]
[312695438,1706149840526,-231.4506122,0.0003,4]
[312695440,1706149840534,-244.14334638,0.0003,4]
[312695442,1706149840544,-2204.35680145,0.0003,2]
[312695444,1706149840553,-139264.62830083,0.0003,4]
[312695446,1706149840562,-209.8998793,0.00030137,2]
[312695448,1706149840571,-171.01238,0.00030137,2]
[312695450,1706149840580,-169.122159,0.00030137,2]
[312695452,1706149840589,-161.3011265,0.00031,4]
[312695454,1706149840598,-154.86062544,0.00032,4]
[312695456,1706149840607,-10000.0,0.00034,2]
[312695458,1706149840617,-177.0772953,0.00034247,2]
[312695460,1706149840626,-434.76156404,0.0003499,6]
[312695462,1706149840635,-332.81782586,0.00035,4]
[312695471,1706149840709,-2085.08363542,0.00035,4]
[312695473,1706149840718,-20000.0,0.00035,7]
[312695475,1706149840729,-155.24566911,0.00035,4]
[312695477,1706149840738,-153.681504,0.00035459,4]
[312695479,1706149840747,-4593.06068613,0.000355,14]
[312695481,1706149840756,-151.01757221,0.00035899,2]
[312695483,1706149840765,-154.84515485,0.00036,4]
[312695485,1706149840774,-150.0,0.00036317,2]
[312695487,1706149840783,-150.202,0.00036317,2]
[312695489,1706149840792,-30430.13582314,0.00037,2]
[312695491,1706149840800,-161.330263,0.00037575,2]
[312695493,1706149840810,-1551.37467146,0.00038,3]
[312695495,1706149840819,-11769.10140853,0.00038,10]
[312695497,1706149840828,-232.8162,0.00038164,2]
[312695499,1706149840837,-150.0,0.000383,10]
[312695501,1706149840845,-19027.36663834,0.00038356,5]
[312695503,1706149840854,-164.098248,0.000384,2]
[312695505,1706149840863,-1274.93866513,0.00038402,2]
[312695507,1706149840873,-687.02930473,0.00038414,4]
[312695509,1706149840882,-154.84515485,0.00038414,4]
[312695511,1706149840891,-375.92766294,0.00038414,4]
[312695513,1706149840900,-183.00882655,0.00038414,2]
[312695515,1706149840909,-5000.0,0.00038899,7]
[312695517,1706149840918,-155.05521662,0.00039,4]
[312695519,1706149840927,-1064.72752597,0.000395,120]
[312695521,1706149840936,-300.0,0.000398,21]
[312695523,1706149840945,-300.0,0.0003988,2]
[312695526,1706149840954,-4040.09199812,0.0003999,4]
[312695528,1706149840964,-640.40435783,0.0004,4]
[312695529,1706149840973,-335.08685943,0.0004,2]
[312695531,1706149840982,-519.66047984,0.0004,4]
[312695533,1706149840991,-332.08351974,0.00040238,4]
[312695536,1706149841000,-155.06189471,0.00040239,4]
[312695538,1706149841009,-462.5226715,0.00040998,2]
[312695540,1706149841019,-280.48406146,0.00041,30]
[312695542,1706149841028,-250.0,0.00041095,7]
[312695544,1706149841037,-500.0,0.00041095,2]
[312695546,1706149841046,-171.01238,0.00041096,2]
[312695547,1706149841054,-160.5089,0.00041102,7]
[312695549,1706149841064,-303.999376,0.000413,21]
[312695551,1706149841073,-157.07627416,0.00041756,30]
[312695553,1706149841082,-156.11791069,0.00041813,30]
[312695555,1706149841091,-193.0329119,0.000419,15]
[312695558,1706149841101,-20055.10798256,0.00042186,2]
[312695560,1706149841110,-152.83080038,0.00042461,30]
[312695562,1706149841119,-500.0,0.00042465,7]
[312695564,1706149841131,-329.6044,0.00042474,4]
[312695566,1706149841140,-14011.98460494,0.00042476,5]
[312695568,1706149841149,-1108.63552369,0.000425,20]
[312695570,1706149841158,-4791.409,0.000425,30]
[312695572,1706149841169,-167.00344165,0.00042725,30]
[312695574,1706149841178,-1008.398264,0.000429,36]
[312695576,1706149841187,-777.0,0.00042924,2]
[312695578,1706149841196,-152.83080038,0.00043054,30]
[312695580,1706149841205,-164.2523,0.00043102,30]
[312695582,1706149841215,-156.1179107,0.00043258,30]
[312695584,1706149841225,-152.83080038,0.00043268,30]
[312695586,1706149841235,-152.83080038,0.00043378,30]
[312695588,1706149841245,-150.83408251,0.00043771,2]
[312695590,1706149841256,-174.88004173,0.00043812,30]
[312695592,1706149841265,-258.23256408,0.00043835,7]
[312695594,1706149841274,-167.00344166,0.00043938,30]
[312695596,1706149841284,-1000.0,0.00044,2]
[312695598,1706149841293,-206.53656791,0.00044,30]
[312695600,1706149841303,-681.5559177,0.00044,30]
[312695602,1706149841314,-853.09127908,0.00044081,2]
[312695604,1706149841323,-152.83080038,0.00044316,30]
[312695606,1706149841333,-5000.07552229,0.00044444,2]
[312695608,1706149841343,-370.25,0.000445,4]
[312695610,1706149841352,-532.0,0.000445,120]
[312695612,1706149841361,-301.66816502,0.00044507,4]
[312695614,1706149841370,-315.83500787,0.00044566,5]
[312695616,1706149841379,-69999.1999992,0.0004459,2]
[312695618,1706149841389,-11320.40373177,0.000447,4]
[312695620,1706149841398,-44609.78250462,0.000447,7]
[312695622,1706149841407,-544.74527689,0.00044708,4]
[312695624,1706149841416,-289.97140014,0.00044708,4]
[312695626,1706149841425,-245.53143114,0.00044709,15]
[312695628,1706149841434,-2528.38244077,0.00044709,15]
[312695630,1706149841443,-1740.13029657,0.0004471,4]
[312695632,1706149841452,-229.56389036,0.0004471,4]
[312695634,1706149841461,-677.86212708,0.0004471,4]
[312695636,1706149841471,-1197.57010962,0.0004471,4]
[312695638,1706149841480,-271.34066145,0.0004471,4]
[312695640,1706149841489,-155.18853269,0.00044712,4]
[312695642,1706149841499,-262.56205314,0.00044712,2]
[312695644,1706149841509,-1826.50328437,0.00044712,2]
[312695646,1706149841518,-202426.54492093,0.00044742,7]
[312695840,1706149843209,-500.0,0.00020822,2]
[312695842,1706149843220,-205.14690629,0.00020822,2]
[312695844,1706149843230,-123.20605856,0.00034999,10]
[312696144,1706150751102,-154.84515485,0.00022114,4]
[312696145,1706150751124,-344.25808007,0.00022115,2]
[312696146,1706150751145,-155.69807753,0.00022115,2]
[312696147,1706150751165,-4725.91421399,0.00027551,2]
[312696148,1706150751188,-10318.87514885,0.00027552,3]
[312696149,1706150751212,-5957.68346778,0.00027552,3]
[312696150,1706150751233,-2500.0,0.000288,3]
[312696151,1706150751255,-170.382306,0.00030137,2]
[312696152,1706150751275,-2838.39,0.00030408,3]
[312696153,1706150751295,-67729.56837093,0.00030418,4]
[312696154,1706150803087,-154.84515485,0.00027374,4]
[312696155,1706150803107,-154.84515485,0.00030136,4]
[312696156,1706150803128,-3614.21,0.00030408,3]
[312696157,1706150803149,-3011.84,0.00030408,3]
[312696158,1706150803169,-367.7572375,0.00030417,3]
[312696159,1706150803189,-375.96014132,0.00030418,4]
[312696160,1706150803210,-662.41129068,0.00030418,4]
[312696161,1706150835098,-154.84515485,0.00027414,4]
[312696162,1706150835119,-171.89862371,0.00030418,4]
[312696163,1706150835138,-687.23319626,0.00030418,4]
[312696164,1706150835157,-375.96014132,0.00030418,4]
[312696165,1706150835177,-154.84515485,0.00030418,4]
[312696166,1706150835196,-2787.83610217,0.00030427,4]
[312696167,1706150835215,-632.65201531,0.00030427,2]
[312696168,1706150835235,-2509.87,0.00030452,3]
[312696169,1706150835255,-2091.56,0.00030452,3]
[312696170,1706150835272,-6349.59683262,0.0003046,3]
[312696171,1706150835290,-154.84515485,0.0003046,4]
[312696172,1706150835310,-394.20516406,0.00030461,2]
[312696173,1706150836074,-105.79483594,0.00030461,2]
[312696174,1706150836095,-500.0,0.00030461,2]
[312696175,1706150836115,-500.0,0.00030461,2]
[312696176,1706150836147,-314.4059647,0.00030461,2]
[312696177,1706150836170,-500.0,0.00030461,2]
[312696178,1706150836192,-500.0,0.00030461,2]
[312696179,1706150836212,-500.0,0.00030461,2]
[312696180,1706150836233,-368.94812743,0.00030461,2]
[312696181,1706150836254,-500.0,0.00030461,2]
[312696182,1706150836276,-354.81953432,0.00030461,2]
[312696183,1706150836297,-500.0,0.00030461,2]
[312696184,1706150836317,-500.0,0.00030461,2]
[312696185,1706150836340,-500.0,0.00030461,2]
[312696186,1706150836491,-500.0,0.00030461,2]
[312696187,1706150836514,-166.63717574,0.00030461,2]
[312696188,1706150836534,-500.0,0.00030461,2]
[312696189,1706150836554,-305.674308,0.00030461,2]
[312696190,1706150836576,-70485.23746387,0.00030462,4]
[312696191,1706150840105,-1742.97,0.00030452,3]
[312696192,1706150840125,-68779.39083696,0.00030462,4]
[312696193,1706150840146,-24900.0,0.00030463,2]
[312696194,1706150840166,-161.35279164,0.00031,4]
[312696195,1706150840186,-161.330263,0.00031817,2]
[312696196,1706150840205,-7542.82849005,0.00032,10]
[312696197,1706150840225,-155.2102609,0.00034296,4]
[312696198,1706150840247,-1274.93866513,0.00034989,2]
[312696199,1706150840269,-434.76156404,0.0003499,6]
[312696200,1706150840290,-1835.49081802,0.00034999,2]
[312696201,1706150840309,-2130.39635724,0.00034999,4]
[312696202,1706150840330,-266.76650364,0.00034999,2]
[312696203,1706150840349,-183.00882655,0.00034999,2]
[312696204,1706150840370,-2094.10058118,0.00035,4]
[312696205,1706150840391,-155.24566911,0.00035,4]
[312696206,1706150840411,-209.8998793,0.00035,2]
[312696207,1706150840430,-333.50991933,0.00035,4]
[312696208,1706150840449,-4736.47643511,0.000355,14]
[312696209,1706150840469,-170.382306,0.00035616,2]
[312696210,1706150840489,-154.84515485,0.00036,4]
[312696211,1706150840514,-500.0,0.00037148,15]
[312696212,1706150840535,-351.2476182,0.00037148,15]
[312696213,1706150840555,-500.0,0.00037148,15]
[312696214,1706150840576,-12160.46277555,0.0003715,5]
[312696215,1706150840597,-4791.409849,0.000375,15]
[312696216,1706150840618,-146253.1539252,0.00037888,2]
[312696259,1706151032363,-274.72098073,0.00030418,4]
[312696260,1706151032373,-179.8689315,0.00034432,2]
[312696261,1706151032382,-150.0,0.00036242,2]
[312696262,1706151032391,-150.202,0.00036242,2]
[312696263,1706151032400,-1169.737764,0.00036894,2]
[312696264,1706151032414,-18261.7411345,0.00036894,2]
[312696265,1706151032423,-12263.88700086,0.0003715,5]
[312696266,1706151032432,-1274.93866513,0.00037877,2]
[312696267,1706151032442,-18426.8266889,0.00037888,2]
[312696288,1706151038352,-326685.5447859,0.00037888,2]
[312696289,1706151038362,-687.23319626,0.00037888,4]
[312696290,1706151038372,-154.84515485,0.00037888,4]
[312696291,1706151038381,-375.96014132,0.00037888,4]
[312696292,1706151038391,-777.0,0.00038,4]
[312696293,1706151038400,-19027.36663834,0.00038554,5]
[312696294,1706151038409,-154.84515485,0.00038999,4]
[312696295,1706151038418,-155.05521662,0.00039,4]
[312696296,1706151038427,-1064.72752597,0.000395,120]
[312696297,1706151038436,-150.0,0.000395,11]
[312696298,1706151038445,-155.30993011,0.00039793,4]
[312696299,1706151038454,-300.0,0.0003988,2]
[312696300,1706151038463,-4041.39742033,0.0003999,4]
[312696301,1706151038472,-519.66047984,0.0004,4]
[312696302,1706151038481,-661.13030148,0.00040197,120]
[312696303,1706151038490,-184.40319045,0.00040998,4]
[312696304,1706151038499,-280.57423078,0.0004105,30]
[312696305,1706151038508,-160.5089,0.00041051,7]
[312696306,1706151038519,-250.0,0.00041095,7]
[312696307,1706151038528,-500.0,0.00041095,2]
[312696308,1706151038537,-170.382306,0.00041096,2]
[312696309,1706151038549,-152.83080038,0.00041384,30]
[312696310,1706151038558,-151.97009506,0.00041619,30]
[312696311,1706151038568,-331.10601299,0.00042004,4]
[312696312,1706151038577,-155.54233737,0.00042107,30]
[312696313,1706151038587,-157.07627416,0.00042206,30]
[312696314,1706151038596,-155.54233738,0.00042228,30]
[312696315,1706151038604,-152.83080038,0.00042449,30]
[312696316,1706151038614,-500.0,0.00042465,7]
[312696317,1706151038623,-2279.24526311,0.000425,20]
[312696318,1706151038634,-490.05646493,0.00042642,2]
[312696319,1706151038644,-152.83080038,0.00042971,30]
[312696320,1706151038653,-164.2523,0.00043051,30]
[312696321,1706151038662,-153.681504,0.00043203,21]
[312696322,1706151038671,-258.23256408,0.00043835,7]
[312696323,1706151038680,-370.25,0.000442,4]
[312696324,1706151038690,-1324.59,0.00044205,3]
[312696325,1706151038699,-766.54,0.00044206,3]
[312696326,1706151038708,-645.38497523,0.00044215,4]
[312696327,1706151038718,-332.57603303,0.00044215,4]
[312696328,1706151038728,-500.0,0.00044216,60]
[312696329,1706151038737,-416.65929394,0.00044216,60]
[312696330,1706151038746,-217.23703186,0.00044216,60]
[312696331,1706151038755,-451.418577,0.00044216,60]
[312696332,1706151038766,-500.0,0.00044216,60]
[312696333,1706151038775,-212.81190455,0.00044216,60]
[312696334,1706151038784,-213.70488358,0.00044216,60]
[312696335,1706151038793,-145551.48613532,0.00044217,7]
[312696336,1706151038815,-999.90957002,0.00044217,7]
[312696353,1706151041472,-77601.51741,0.00044217,7]
[312696354,1706151041484,-4000.2,0.00044217,7]
[312696368,1706151043390,-8341.8689792,0.00044217,7]
[312696369,1706151043448,-5034.46441642,0.00044217,7]
[312696377,1706151046431,-187.1524593,0.00037877,2]
[312696378,1706151046442,-258469.55348904,0.00044217,7]
[312696379,1706151046451,-11627.49871987,0.00044218,4]
[312696380,1706151046460,-156.11791069,0.00044226,30]
[312696381,1706151046469,-6362.60577504,0.000444,60]
[312696382,1706151046478,-232.8162,0.00044488,2]
[312696383,1706151046487,-1008.398264,0.000445,41]
[312696384,1706151046496,-310.29704609,0.00044548,4]
[312696385,1706151046506,-2803.00676315,0.00044548,4]
[312696386,1706151046516,-334.39476696,0.00044548,4]
[312696387,1706151046526,-487.33809586,0.00044549,2]
[312696388,1706151046542,-235.69277878,0.00044549,2]
[312696389,1706151046555,-251.78679995,0.00044549,60]
[312696390,1706151046567,-113.14762225,0.00044549,60]
[312696391,1706151046576,-500.0,0.00044549,60]
[312696392,1706151046585,-384.76724431,0.00044549,60]
[312696393,1706151046594,-500.0,0.00044549,60]
[312696394,1706151046604,-447.0631734,0.00044549,60]
[312696395,1706151046613,-500.0,0.00044549,60]
[312696396,1706151046621,-500.0,0.00044549,60]
[312696397,1706151046632,-500.0,0.00044549,60]
[312696398,1706151046641,-500.0,0.00044549,60]
[312696399,1706151046649,-385.19333935,0.00044549,60]
[312696400,1706151046658,-421.1510502,0.00044549,4]
[312696401,1706151046667,-11714.02511049,0.00044549,4]
[312696561,1706152238679,-179.64,0.00024993,2]
[312696563,1706152238689,-1500.90139842,0.00025,2]
[312696565,1706152238698,-25347.50051164,0.00025,2]
[312696567,1706152238707,-1002.8647388,0.00025,2]
[312696569,1706152238716,-2342.11310944,0.00027552,3]
[312696571,1706152238725,-1779.62498827,0.00027552,3]
[312696573,1706152238735,-3627.13900584,0.00027552,3]
[312696575,1706152238744,-155.30993011,0.00028798,2]
[312696577,1706152238754,-2867.83,0.0002999,3]
[312696579,1706152238763,-2389.86,0.0002999,3]
[312696581,1706152238773,-1991.55,0.0002999,3]
[312696583,1706152238782,-1659.62,0.0002999,3]
[312696585,1706152238791,-1383.02,0.0002999,3]
[312696587,1706152238801,-1152.52,0.0002999,3]
[312696589,1706152238810,-960.43,0.0002999,3]
[312696591,1706152238819,-800.36,0.0002999,3]
[312696593,1706152238828,-681.6348958,0.00029998,2]
[312696595,1706152238837,-1951.14094055,0.00029998,2]
[312696597,1706152238846,-470.87385711,0.00029998,2]
[312696599,1706152238856,-155.21204316,0.00029998,2]
[312696601,1706152238865,-852.83510414,0.00029998,2]
[312696603,1706152238874,-161.35117396,0.00029999,2]
[312696605,1706152238883,-2109.88863712,0.00029999,2]
[312696607,1706152238892,-139264.62830083,0.0003,4]
[312696609,1706152238901,-154.84515485,0.0003,4]
[312696611,1706152238910,-244.14334638,0.0003,4]
[312696613,1706152238919,-2204.35680145,0.0003,2]
[312696615,1706152238931,-231.4506122,0.0003,4]
[312696617,1706152238940,-170.382307,0.00030137,2]
[312696619,1706152238949,-170.382306,0.00030137,2]
[312696621,1706152238958,-331.10601299,0.00030398,4]
[312696623,1706152238967,-209.8998793,0.000304,2]
[312696625,1706152238976,-161.35279164,0.00031,4]
[312696627,1706152238985,-2787.83610217,0.00031898,4]
[312696629,1706152238994,-314.4059647,0.00031899,7]
[312696631,1706152239003,-500.0,0.00031899,7]
[312696632,1706152239012,-500.0,0.00031899,7]
[312696634,1706152239022,-500.0,0.00031899,7]
[312696636,1706152239032,-500.0,0.00031899,7]
[312696638,1706152239042,-306.88732846,0.00031899,7]
[312696640,1706152239051,-500.0,0.00031899,7]
[312696642,1706152239062,-500.0,0.00031899,7]
[312696644,1706152239071,-500.0,0.00031899,7]
[312696646,1706152239081,-500.0,0.00031899,7]
[312696648,1706152239090,-500.0,0.00031899,7]
[312696650,1706152239100,-531.3835965,0.00031899,7]
[312696652,1706152239110,-500.0,0.00031899,7]
[312696654,1706152239119,-500.0,0.00031899,7]
[312696656,1706152239129,-374.96682271,0.00031899,7]
[312696658,1706152239139,-500.0,0.00031899,7]
[312696659,1706152239147,-500.0,0.00031899,7]
[312696660,1706152239156,-586.18515929,0.00031899,7]
[312696661,1706152239165,-500.0,0.00031899,7]
[312696662,1706152239175,-500.0,0.00031899,7]
[312696663,1706152239184,-500.0,0.00031899,7]
[312696664,1706152239193,-208240.08750935,0.000319,2]
[312696665,1706152239202,-332.57603303,0.00031998,4]
[312696666,1706152239211,-349.59573489,0.00032,3]
[312696667,1706152239224,-250355.66168014,0.00032,15]
[312696668,1706152239236,-21085.23639643,0.00032,15]
[312696981,1706152243724,-154.84515485,0.00024992,4]
[312696985,1706152243816,-365.15484515,0.00032,15]
[312696988,1706152243829,-1627.75,0.00032,15]
[312697145,1706153437874,-213.51549379,0.00027516,2]
[312697147,1706153437884,-688.25423184,0.00027517,2]
[312697149,1706153437893,-158.77363007,0.00027517,2]
[312697151,1706153437904,-262.4463546,0.00027518,2]
[312697153,1706153437913,-272.67748325,0.00027519,2]
[312697155,1706153437923,-154.84515485,0.0002752,4]
[312697157,1706153437933,-10546.60603151,0.00027551,2]
[312697158,1706153437942,-897.81002529,0.00027552,3]
[312697159,1706153437952,-24900.0,0.00028132,2]
[312697160,1706153437961,-490.05646493,0.000299,2]
[312697161,1706153437971,-154.84515485,0.00030136,4]
[312697162,1706153437980,-161.330263,0.00030137,2]
[312697163,1706153437989,-20000.0,0.00031,5]
[312697164,1706153437999,-161.35279164,0.00031075,4]
[312697165,1706153438009,-200.0,0.00031076,15]
[312697166,1706153438018,-3180.51717973,0.00031358,4]
[312697167,1706153438027,-932.46,0.00031988,3]
[312697168,1706153438037,-1582.07,0.00031988,3]
[312697169,1706153438048,-154.93802479,0.00031998,2]
[312697170,1706153438057,-178.91876323,0.00031998,4]
[312697171,1706153438066,-713.39204448,0.00031998,4]
[312697172,1706153438076,-1266.95335862,0.00031998,4]
[312697173,1706153438086,-1995.16928863,0.00031998,4]
[312697174,1706153438095,-4296.29636394,0.00031998,2]
[312697175,1706153438105,-155.61669481,0.00031998,4]
[312697176,1706153438115,-180.69433126,0.00031998,4]
[312697177,1706153438124,-225.32624412,0.00031998,4]
[312697178,1706153438135,-268.53505899,0.00031998,2]
[312697179,1706153438144,-632.65201531,0.00031998,2]
[312697180,1706153438154,-1756.99862781,0.00031998,4]
[312697181,1706153438164,-155.12201287,0.00031999,4]
[312697182,1706153438174,-526.98042751,0.00031999,4]
[312697183,1706153438183,-5362.10596277,0.00031999,4]
[312697184,1706153438193,-118517.65588239,0.00032,15]
[312697185,1706153438203,-155.2102609,0.00032,4]
[312697186,1706153438213,-687.23319626,0.00032,4]
[312697187,1706153438222,-154.84515485,0.00032,4]
[312697188,1706153438231,-375.96014132,0.00032,4]
[312697189,1706153438241,-468.53796486,0.00033411,4]
[312697190,1706153438251,-490.05646493,0.000349,2]
[312697191,1706153438261,-434.76156404,0.0003499,6]
[312697192,1706153438271,-661.13030148,0.00035,7]
[312697193,1706153438281,-333.50991933,0.00035,4]
[312697194,1706153438292,-2094.10058118,0.00035,4]
[312697195,1706153438302,-155.24566911,0.00035,4]
[312697196,1706153438311,-2892.39594585,0.000355,14]
[312697197,1706153438419,-1844.08048926,0.000355,14]
[312697198,1706153438429,-154.84515485,0.00036,4]
[312697199,1706153438440,-564.05952275,0.00036997,15]
[312697200,1706153438449,-500.0,0.00036997,15]
[312697201,1706153438458,-500.0,0.00036997,15]
[312697202,1706153438469,-500.0,0.00036997,15]
[312697203,1706153438478,-500.0,0.00036997,15]
[312697204,1706153438487,-500.0,0.00036997,15]
[312697205,1706153438497,-500.0,0.00036997,15]
[312697206,1706153438506,-500.0,0.00036997,15]
[312697207,1706153438515,-500.0,0.00036997,15]
[312697208,1706153438525,-500.0,0.00036997,15]
[312697209,1706153438534,-500.0,0.00036997,15]
[312697210,1706153438545,-274.31619932,0.00036997,15]
[312697211,1706153438554,-500.0,0.00036997,15]
[312697212,1706153438563,-500.0,0.00036997,15]
[312697213,1706153438572,-630.68873284,0.00036997,15]
[312697214,1706153438581,-500.0,0.00036997,15]
[312697215,1706153438591,-500.0,0.00036997,15]
[312697216,1706153438600,-500.0,0.00036997,15]
[312697217,1706153438609,-264.64213719,0.00036997,15]
[312697232,1706153442749,-1065.98655235,0.0003199,3]
[312697233,1706153442762,-252.40344765,0.0003199,3]
[312697234,1706153442772,-235.35786281,0.00036997,15]
[312697235,1706153442781,-500.0,0.00036997,15]
[312697236,1706153442791,-500.0,0.00036997,15]
[312697237,1706153442801,-500.0,0.00036997,15]
[312697238,1706153442810,-500.0,0.00036997,15]
[312697239,1706153442819,-500.0,0.00036997,15]
[312697240,1706153442828,-500.0,0.00036997,15]
[312697241,1706153442837,-500.0,0.00036997,15]
[312697242,1706153442846,-500.0,0.00036997,15]
[312697243,1706153442856,-500.0,0.00036997,15]
[312697244,1706153442865,-500.0,0.00036997,15]
[312697245,1706153442874,-500.0,0.00036997,15]
[312697246,1706153442883,-500.0,0.00036997,15]
[312697247,1706153442892,-500.0,0.00036997,15]
[312697248,1706153442901,-500.0,0.00036997,15]
[312697249,1706153442911,-500.0,0.00036997,15]
[312697250,1706153442920,-500.0,0.00036997,15]
[312697251,1706153442929,-500.0,0.00036997,15]
[312697252,1706153442938,-500.0,0.00036997,15]
[312697253,1706153442947,-500.0,0.00036997,15]
[312697254,1706153442956,-500.0,0.00036997,15]
[312697255,1706153442966,-500.0,0.00036997,15]
[312697256,1706153442975,-640.16576858,0.00036997,15]
[312697257,1706153442984,-500.0,0.00036997,15]
[312697258,1706153442993,-500.0,0.00036997,15]
[312697259,1706153443003,-500.0,0.00036997,15]
[312697260,1706153443012,-500.0,0.00036997,15]
[312697261,1706153443022,-500.0,0.00036997,15]
[312697262,1706153443031,-500.0,0.00036997,15]
[312697263,1706153443041,-500.0,0.00036997,15]
[312697264,1706153443050,-500.0,0.00036997,15]
[312697265,1706153443059,-500.0,0.00036997,15]
[312697266,1706153443069,-500.0,0.00036997,15]
[312697267,1706153443078,-500.0,0.00036997,15]
[312697268,1706153443087,-500.0,0.00036997,15]
[312697269,1706153443097,-500.0,0.00036997,15]
[312697270,1706153443106,-500.0,0.00036997,15]
[312697271,1706153443116,-500.0,0.00036997,15]
[312697272,1706153443125,-19222.83266946,0.00037,2]
[312697273,1706153443141,-11207.30315368,0.00037,2]
[312697274,1706153443151,-463.84968646,0.00037888,4]
[312697275,1706153443160,-6706.11511501,0.00038,10]
[312697291,1706154547099,-154.87609912,0.00027542,4]
[312697292,1706154547119,-679.03304923,0.00027543,2]
[312697293,1706154547140,-154.86062544,0.00027544,2]
[312697294,1706154547160,-1198.61763963,0.00027544,2]
[312697295,1706154547182,-4725.91421399,0.00027544,2]
[312697296,1706154547202,-1428.56735179,0.00027545,2]
[312697414,1706154638661,-154.87609912,0.00026998,4]
[312697416,1706154638671,-1695.48079408,0.00027551,2]
[312697758,1706154644405,-8851.12523743,0.00027551,2]
[312697760,1706154644415,-1440.67224795,0.00027552,3]
[312697762,1706154644424,-224.45250632,0.00027552,3]
[312697764,1706154644434,-8595.69508765,0.00027552,3]
[312697766,1706154644444,-4725.91421399,0.00028799,2]
[312697768,1706154644454,-154.87609912,0.00028799,2]
[312697770,1706154644463,-2500.0,0.00029697,3]
[312697772,1706154644473,-10132.41945269,0.00029698,2]
[312697846,1706154900062,1012.14173056,0.0002,14]
[312697847,1706154933644,999.0,0.00029,30]
[312697877,1706155833801,-679.03304923,0.00021943,2]
[312697879,1706155833810,-154.92253873,0.00021944,4]
[312697881,1706155833820,-1198.61763963,0.00021944,2]
[312697883,1706155833830,-323.30988592,0.00021945,2]
[312697885,1706155833839,-155.00001712,0.00021946,2]
[312697887,1706155833847,-850.73963902,0.00021947,2]
[312697889,1706155833857,-10546.60603151,0.00021947,2]
[312697891,1706155833866,-154.92253873,0.00021948,2]
[312697893,1706155833876,-5000.0,0.00021948,5]
[312697895,1706155833885,-184.912611,0.00023667,2]
[312697897,1706155833894,-200.0,0.00024154,7]
[312697899,1706155833903,-380.0,0.00024658,2]
[312697901,1706155833912,-184.912611,0.00026893,2]
[312697902,1706155833923,-937.28901272,0.00026996,2]
[312697903,1706155833934,-154.92253873,0.00026998,2]
[312697904,1706155833943,-290.53836744,0.00027,2]
[312697905,1706155833952,-33018.23353847,0.00027552,3]
[312697906,1706155833961,-1238.18375768,0.00027552,3]
[312697907,1706155833971,-163.35215498,0.00027598,2]
[312697908,1706155833980,-165.0509268,0.00027962,2]
[312697909,1706155834085,-500.85407226,0.00028498,5]
[312697910,1706155834094,-279.82176233,0.00029,2]
[312697911,1706155834104,-1587.46104404,0.00029398,2]
[312697941,1706155838302,-3130.26562776,0.00027552,3]
[312697943,1706155838311,-1409.55315888,0.00029398,2]
[312697945,1706155838321,-1495.07926718,0.00029698,2]
[312697947,1706155838330,-2543.41353878,0.0002979,7]
[312697949,1706155838339,-286.91674003,0.00029848,2]
[312697951,1706155838348,-367.7572375,0.00029998,3]
[312697953,1706155838357,-2044.83366883,0.00029998,2]
[312697955,1706155838366,-155.15056483,0.00029998,2]
[312697957,1706155838375,-155.23110893,0.00029998,2]
[312697959,1706155838384,-2074.94658461,0.00029998,2]
[312697961,1706155838394,-470.87385711,0.00029998,2]
[312697963,1706155838403,-154.86062544,0.0003,4]
[312697965,1706155838412,-139264.62830083,0.0003,4]
[312697967,1706155838421,-2319.1861855,0.0003,3]
[312697969,1706155838430,-2204.35680145,0.0003,2]
[312697972,1706155838439,-209.8998793,0.00030137,2]
[312697974,1706155838449,-170.382306,0.00030137,2]
[312697975,1706155838458,-170.382306,0.00030137,2]